[Event "Slovakian ECo-C Extraliga 2024-25"]
[Site "Slovakia"]
[Date "2025.02.15"]
[Round "5"]
[White "Manik, Mikulas"]
[Black "Stalmach, Richard"]
[Result "1-0"]
[Annotator "ChessBase"]
[ECO "B87"]
[WhiteElo "2262"]
[BlackElo "2455"]
[PlyCount "95"]
[EventDate "2024.09.12"]
[EventType "team-tourn"]
[EventCountry "SVK"]
[SourceTitle "playchess.com"]
[Source "ChessBase"]
[SourceQuality "1"]
[TimeControl "5400+30"]

1. e4 {[%emt 0:00:03]} c5 {[%emt 0:00:12]} 2. Nf3 {[%emt 0:00:02]} d6 {[%emt 0:00:37]} 3. d4 {[%emt 0:00:08]} cxd4 {[%emt 0:00:04]} 4. Nxd4 {[%emt 0:00:04]} Nf6 {[%emt 0:00:06]} 5. Nc3 {[%emt 0:00:02]} a6 {[%emt 0:00:11]} 6. Bc4 {[%emt 0:01:47]} e6 {[%emt 0:00:16]} 7. Bb3 {[%emt 0:00:14]} b5 {[%emt 0:00:32]} 8. Bg5 {[%emt 0:02:41]} Be7 {[%emt 0:04:14]} 9. Qf3 {[%emt 0:01:27]} Qc7 {[%emt 0:03:55]} 10. e5 {[%emt 0:06:31]} Bb7 {[%emt 0:10:51]} 11. exd6 {[%emt 0:00:21]} Bxd6 {[%emt 0:00:05]} 12. Qe3 {[%emt 0:00:14]} O-O {[%emt 0:16:05]} 13. O-O-O {[%emt 0:11:55]} Ng4 {[%emt 0:09:52]} 14. Qe2 {[%emt 0:02:15]} Bf4+ {[%emt 0:00:55]} 15. Bxf4 {[%emt 0:00:07]} Qxf4+ {[%emt 0:00:04]} 16. Kb1 {[%emt 0:03:38]} b4 {[%emt 0:11:49]} 17. Na4 {[%emt 0:02:05]} Nc6 {[%emt 0:10:53]} 18. Nxe6 {[%emt 0:03:40]} fxe6 {[%emt 0:00:06]} 19. Bxe6+ {[%emt 0:00:09]} Kh8 {[%emt 0:00:03]} 20. Qxg4 {[%emt 0:00:10]} Qxg4 {[%emt 0:00:04]} 21. Bxg4 {[%emt 0:00:09]} Ne5 {[%emt 0:00:05]} 22. Bh3 {[%emt 0:03:40]} Rxf2 {[%emt 0:05:41]} 23. Nb6 {[%emt 0:04:58]} Raf8 {[%emt 0:03:25]} 24. Rhe1 {[%emt 0:01:09]} Ng6 {[%emt 0:04:43]} 25. Nd7 {[%emt 0:01:16]} Rc8 {[%emt 0:14:38]} 26. Ne5 {[%emt 0:00:49]} Rb8 {[%emt 0:03:11]} 27. Nd3 {[%emt 0:00:43]} Rf6 {[%emt 0:00:01]} 28. Nc5 {[%emt 0:01:02]} Rf2 {[%emt 0:00:57]} 29. Rd6 {[%emt 0:18:58]} Rf6 {[%emt 0:00:54]} 30. Nxb7 {[%emt 0:04:29]} Rxb7 {[%emt 0:00:02]} 31. Re8+ {[%emt 0:00:11]} Rf8 {[%emt 0:00:02]} 32. Rxf8+ {[%emt 0:00:07]} Nxf8 {[%emt 0:00:02]} 33. Rxa6 {[%emt 0:00:09]} g5 {[%emt 0:00:01]} 34. a4 {[%emt 0:03:03]} bxa3 {[%emt 0:00:21]} 35. Rxa3 {[%emt 0:00:07]} Re7 {[%emt 0:01:14]} 36. Bf5 {[%emt 0:06:29]} Re2 {[%emt 0:00:59]} 37. Rg3 {[%emt 0:00:23]} h6 {[%emt 0:00:59]} 38. b4 {[%emt 0:03:01]} Kg7 {[%emt 0:00:01]} 39. h4 {[%emt 0:01:14]} Rf2 {[%emt 0:01:18]} 40. Bh3 {[%emt 0:01:12]} Rf4 {[%emt 0:00:25]} 41. Rg4 {[%emt 0:02:24]} Rxg4 {[%emt 0:00:00]} 42. Bxg4 {[%emt 0:00:00]} gxh4 {[%emt 0:00:00]} 43. b5 {[%emt 0:00:00]} Ng6 {[%emt 0:00:00]} 44. b6 {[%emt 0:00:00]} Ne5 {[%emt 0:00:00]} 45. b7 {[%emt 0:00:00]} Nc6 {[%emt 0:00:00]} 46. Bd7 {[%emt 0:00:00]} Nb8 {[%emt 0:00:00]} 47. Bb5 {[%emt 0:00:00]} Kf6 {[%emt 0:00:00]} 48. c4 {[%emt 0:00:00]} 1-0

[Event "Slovakian ECo-C Extraliga 2024-25"]
[Site "Slovakia"]
[Date "2025.02.15"]
[Round "5"]
[White "Vojtek, Vladimir"]
[Black "Molnar, Erno"]
[Result "1-0"]
[Annotator "ChessBase"]
[ECO "C26"]
[WhiteElo "2259"]
[BlackElo "2208"]
[PlyCount "69"]
[EventDate "2024.09.12"]
[EventType "team-tourn"]
[EventCountry "SVK"]
[SourceTitle "playchess.com"]
[Source "ChessBase"]
[SourceQuality "1"]
[TimeControl "5400+30"]

1. e4 {[%emt 0:00:05]} e5 {[%emt 0:00:16]} 2. Nc3 {[%emt 0:01:48]} Nf6 {[%emt 0:00:16]} 3. d4 {[%emt 0:06:39]} exd4 {[%emt 0:08:07]} 4. Qxd4 {[%emt 0:00:55]} Nc6 {[%emt 0:00:46]} 5. Qd3 {[%emt 0:11:44]} Bb4 {[%emt 0:11:46]} 6. Bd2 {[%emt 0:00:48]} O-O {[%emt 0:00:45]} 7. O-O-O {[%emt 0:02:31]} Re8 {[%emt 0:00:23]} 8. Nge2 {[%emt 0:11:59]} d6 {[%emt 0:28:01]} 9. Bg5 {[%emt 0:09:50]} h6 {[%emt 0:06:40]} 10. Bxf6 {[%emt 0:00:38]} Qxf6 {[%emt 0:00:00]} 11. Nd5 {[%emt 0:01:26]} Qd8 {[%emt 0:05:16]} 12. f4 {[%emt 0:08:06]} Bc5 {[%emt 0:07:55]} 13. Ng3 {[%emt 0:08:51]} Be6 {[%emt 0:00:00]} 14. Kb1 a5 {[%emt 0:12:14]} 15. Nh5 {[%emt 0:15:11]} Kh8 {[%emt 0:12:50]} 16. Qg3 {[%emt 0:00:07]} Rg8 {[%emt 0:04:38]} 17. Bc4 {[%emt 0:12:22]} b5 {[%emt 0:04:21]} 18. Bxb5 {[%emt 0:01:32]} Bxd5 {[%emt 0:00:40]} 19. Rxd5 {[%emt 0:00:21]} Nd4 {[%emt 0:01:26]} 20. Bc4 {[%emt 0:02:21]} Qe7 {[%emt 0:00:52]} 21. Qd3 {[%emt 0:01:52]} Nc6 {[%emt 0:00:29]} 22. Rf5 {[%emt 0:01:01]} Raf8 {[%emt 0:00:57]} 23. Re1 {[%emt 0:00:00]} g6 {[%emt 0:02:00]} 24. Rxc5 {[%emt 0:01:14]} dxc5 {[%emt 0:00:16]} 25. Ng3 {[%emt 0:00:26]} Rd8 {[%emt 0:00:00]} 26. Qe3 {[%emt 0:01:16]} Kh7 {[%emt 0:00:43]} 27. e5 {[%emt 0:00:35]} Rge8 {[%emt 0:00:43]} 28. Ne4 {[%emt 0:00:47]} Nb8 {[%emt 0:00:49]} 29. Nxc5 {[%emt 0:00:26]} c6 {[%emt 0:00:14]} 30. b3 {[%emt 0:00:38]} Nd7 {[%emt 0:00:31]} 31. Ne4 {[%emt 0:00:19]} Nxe5 {[%emt 0:00:28]} 32. fxe5 {[%emt 0:00:04]} Qxe5 {[%emt 0:01:29]} 33. Bxf7 {[%emt 0:00:06]} Rf8 {[%emt 0:00:11]} 34. Bc4 {[%emt 0:00:59]} Rd4 {[%emt 0:00:00]} 35. Ng5+ {[%emt 0:00:12]} 1-0

[Event "Slovakian ECo-C Extraliga 2024-25"]
[Site "Slovakia"]
[Date "2025.02.15"]
[Round "5"]
[White "Kukel, Imre"]
[Black "Motuz, Karol"]
[Result "0-1"]
[Annotator "ChessBase"]
[ECO "C84"]
[WhiteElo "2237"]
[BlackElo "2305"]
[PlyCount "136"]
[EventDate "2024.09.12"]
[EventType "team-tourn"]
[EventCountry "SVK"]
[SourceTitle "playchess.com"]
[Source "ChessBase"]
[SourceQuality "1"]
[TimeControl "5400+30"]

1. e4 {[%emt 0:00:08]} e5 {[%emt 0:00:47]} 2. Nf3 {[%emt 0:00:39]} Nc6 {[%emt 0:00:18]} 3. Bb5 {[%emt 0:00:05]} a6 {[%emt 0:00:11]} 4. Ba4 {[%emt 0:00:02]} Nf6 {[%emt 0:00:16]} 5. O-O {[%emt 0:00:04]} Nxe4 {[%emt 0:02:26]} 6. d4 {[%emt 0:00:21]} Be7 {[%emt 0:12:35]} 7. Qe2 {[%emt 0:03:38]} b5 {[%emt 0:09:51]} 8. d5 {[%emt 0:07:32]} Nc5 {[%emt 0:02:33]} 9. Bb3 {[%emt 0:12:25]} Na5 {[%emt 0:13:24]} 10. Nxe5 {[%emt 0:03:42]} d6 {[%emt 0:00:00]} 11. Bd2 {[%emt 0:03:12]} dxe5 {[%emt 0:05:26]} 12. Bxa5 {[%emt 0:03:01]} O-O {[%emt 0:07:14]} 13. Rd1 {[%emt 0:24:13]} Bd6 {[%emt 0:03:00]} 14. Nd2 {[%emt 0:03:26]} Qh4 {[%emt 0:00:00]} 15. Nf1 {[%emt 0:08:16]} Bg4 {[%emt 0:00:00]} 16. f3 {[%emt 0:00:00]} Bd7 {[%emt 0:00:00]} 17. Be1 {[%emt 0:00:00]} Qe7 {[%emt 0:00:00]} 18. c3 {[%emt 0:00:00]} Nxb3 {[%emt 0:00:00]} 19. axb3 {[%emt 0:02:08]} a5 {[%emt 0:04:44]} 20. Ra2 {[%emt 0:00:58]} a4 {[%emt 0:00:00]} 21. bxa4 {[%emt 0:03:26]} bxa4 {[%emt 0:00:06]} 22. Bf2 {[%emt 0:12:27]} Rab8 {[%emt 0:00:31]} 23. Nd2 {[%emt 0:01:16]} c6 {[%emt 0:05:09]} 24. Nc4 {[%emt 0:00:00]} cxd5 {[%emt 0:10:11]} 25. Rxd5 {[%emt 0:01:13]} Be6 {[%emt 0:01:26]} 26. Ra5 {[%emt 0:03:25]} a3 {[%emt 0:00:58]} 27. Ra7 {[%emt 0:04:19]} Qg5 {[%emt 0:06:21]} 28. b4 {[%emt 0:05:31]} Bxc4 {[%emt 0:02:36]} 29. Qxc4 {[%emt 0:04:55]} Rbc8 {[%emt 0:05:53]} 30. Bc5 {[%emt 0:00:00]} Bxc5+ {[%emt 0:02:11]} 31. bxc5 {[%emt 0:00:00]} Qe3+ {[%emt 0:00:44]} 32. Kf1 {[%emt 0:00:38]} Rxc5 {[%emt 0:00:48]} 33. Qe2 {[%emt 0:02:54]} Qh6 {[%emt 0:01:51]} 34. R7xa3 {[%emt 0:00:26]} Qxh2 {[%emt 0:01:48]} 35. Qe3 {[%emt 0:00:00]} Qh1+ {[%emt 0:00:58]} 36. Kf2 {[%emt 0:00:24]} Qh4+ {[%emt 0:00:04]} 37. Kg1 {[%emt 0:01:14]} Qc4 {[%emt 0:01:33]} 38. Ra5 {[%emt 0:00:00]} Rxa5 {[%emt 0:00:45]} 39. Rxa5 {[%emt 0:00:28]} f6 {[%emt 0:01:26]} 40. Qc5 {[%emt 0:00:00]} Rc8 {[%emt 0:00:51]} 41. Qxc4+ {[%emt 0:01:13]} Rxc4 {[%emt 0:00:44]} 42. Ra3 {[%emt 0:05:14]} Kf7 {[%emt 0:03:43]} 43. Kf2 {[%emt 0:03:42]} h5 {[%emt 0:00:00]} 44. Ke3 {[%emt 0:00:34]} h4 {[%emt 0:00:00]} 45. Kd3 {[%emt 0:00:00]} Rf4 {[%emt 0:00:00]} 46. Ra7+ {[%emt 0:00:00]} Kg6 {[%emt 0:00:00]} 47. Ke3 {[%emt 0:00:00]} h3 {[%emt 0:00:00]} 48. gxh3 {[%emt 0:00:00]} Rh4 {[%emt 0:00:12]} 49. Rc7 {[%emt 0:00:10]} Rxh3 {[%emt 0:02:00]} 50. Kf2 {[%emt 0:00:39]} Rh2+ {[%emt 0:00:00]} 51. Kg3 {[%emt 0:00:00]} Rc2 {[%emt 0:00:00]} 52. c4 {[%emt 0:01:51]} f5 {[%emt 0:00:00]} 53. Kh3 {[%emt 0:00:00]} f4 {[%emt 0:00:00]} 54. c5 {[%emt 0:00:00]} Rf2 {[%emt 0:00:00]} 55. Kg4 {[%emt 0:00:00]} Rg2+ {[%emt 0:00:00]} 56. Kh4 {[%emt 0:00:15]} Rg3 {[%emt 0:00:00]} 57. c6 {[%emt 0:01:05]} Rxf3 {[%emt 0:00:00]} 58. Re7 {[%emt 0:00:00]} Kf6 {[%emt 0:00:00]} 59. c7 {[%emt 0:00:00]} Rc3 {[%emt 0:00:00]} 60. Rd7 {[%emt 0:01:28]} g5+ {[%emt 0:00:00]} 61. Kg4 {[%emt 0:00:00]} e4 {[%emt 0:00:00]} 62. Rh7 {[%emt 0:00:46]} Kg6 {[%emt 0:00:00]} 63. Rh3 {[%emt 0:00:00]} Rxc7 {[%emt 0:00:00]} 64. Rc3 {[%emt 0:00:09]} Rf7 {[%emt 0:00:00]} 65. Rc5 {[%emt 0:00:00]} f3 {[%emt 0:00:00]} 66. Rxg5+ {[%emt 0:00:00]} Kf6 {[%emt 0:00:00]} 67. Ra5 {[%emt 0:00:07]} f2 {[%emt 0:00:00]} 68. Ra1 {[%emt 0:00:00]} Ke5 {[%emt 0:00:51]} 0-1

[Event "Slovakian ECo-C Extraliga 2024-25"]
[Site "Slovakia"]
[Date "2025.02.15"]
[Round "5"]
[White "Molnar, Erno"]
[Black "Vojtek, Vladimir"]
[Result "*"]
[Annotator "NA"]
[ECO "C26"]
[WhiteElo "2208"]
[BlackElo "2259"]
[PlyCount "26"]
[EventDate "2024.09.12"]
[EventType "team-tourn"]
[EventCountry "SVK"]
[SourceTitle "playchess.com"]
[Source "ChessBase"]
[SourceQuality "1"]
[TimeControl "5400+30"]

1. e4 {[%emt 0:00:05]} e5 {[%emt 0:00:16]} 2. Nc3 {[%emt 0:01:48]} Nf6 {[%emt 0:00:16]} 3. d4 {[%emt 0:06:39]} exd4 {[%emt 0:08:07]} 4. Qxd4 {[%emt 0:00:55]} Nc6 {[%emt 0:00:46]} 5. Qd3 {[%emt 0:11:44]} Bb4 {[%emt 0:11:46]} 6. Bd2 {[%emt 0:00:48]} O-O {[%emt 0:00:45]} 7. O-O-O {[%emt 0:02:31]} Re8 {[%emt 0:00:23]} 8. Nge2 {[%emt 0:11:59]} d6 {[%emt 0:28:01]} 9. Bg5 {[%emt 0:09:50]} h6 {[%emt 0:00:32]} 10. Bxf6 {[%emt 0:00:38]} Qxf6 {[%emt 0:00:00]} 11. Nd5 {[%emt 0:00:56]} Qd8 {[%emt 0:00:35]} 12. f4 {[%emt 0:00:14]} Bc5 {[%emt 0:00:00]} 13. Ng3 {[%emt 0:00:27]} Be6 {[%emt 0:00:22]} *

[Event "Slovakian ECo-C Extraliga 2024-25"]
[Site "Slovakia"]
[Date "2025.02.15"]
[Round "5"]
[White "Borosova, Zuzana"]
[Black "Kusa, Jakub"]
[Result "1-0"]
[Annotator "ChessBase"]
[ECO "C45"]
[WhiteElo "2190"]
[BlackElo "2405"]
[PlyCount "75"]
[EventDate "2024.09.12"]
[EventType "team-tourn"]
[EventCountry "SVK"]
[SourceTitle "playchess.com"]
[Source "ChessBase"]
[SourceQuality "1"]
[TimeControl "5400+30"]

1. e4 {[%emt 0:00:04]} e5 {[%emt 0:00:16]} 2. Nf3 {[%emt 0:02:32]} Nc6 {[%emt 0:00:10]} 3. d4 {[%emt 0:05:23]} exd4 {[%emt 0:00:07]} 4. Nxd4 {[%emt 0:00:13]} Nf6 {[%emt 0:00:11]} 5. Nxc6 {[%emt 0:01:19]} bxc6 {[%emt 0:00:11]} 6. Bd3 {[%emt 0:01:08]} d5 {[%emt 0:00:45]} 7. exd5 {[%emt 0:00:23]} cxd5 {[%emt 0:00:19]} 8. O-O {[%emt 0:00:13]} Be7 {[%emt 0:00:29]} 9. h3 {[%emt 0:00:07]} O-O {[%emt 0:01:09]} 10. Re1 {[%emt 0:04:41]} Be6 {[%emt 0:01:17]} 11. Nd2 {[%emt 0:07:48]} c5 {[%emt 0:02:51]} 12. c4 {[%emt 0:02:13]} Rb8 {[%emt 0:08:43]} 13. Qc2 {[%emt 0:03:34]} h6 {[%emt 0:14:10]} 14. Nf3 {[%emt 0:19:21]} Bd6 {[%emt 0:00:00]} 15. b3 {[%emt 0:01:04]} d4 {[%emt 0:11:52]} 16. Bd2 {[%emt 0:09:09]} Qc7 {[%emt 0:00:00]} 17. Bf5 {[%emt 0:07:40]} Rbe8 {[%emt 0:06:23]} 18. Rac1 {[%emt 0:14:53]} Re7 {[%emt 0:00:00]} 19. b4 {[%emt 0:03:39]} Rfe8 {[%emt 0:00:00]} 20. Bxe6 {[%emt 0:02:41]} Rxe6 {[%emt 0:00:00]} 21. bxc5 {[%emt 0:02:49]} Bxc5 {[%emt 0:00:00]} 22. Rxe6 {[%emt 0:05:05]} Rxe6 {[%emt 0:00:00]} 23. Re1 {[%emt 0:01:33]} Qe7 {[%emt 0:00:00]} 24. Rxe6 {[%emt 0:00:56]} fxe6 {[%emt 0:00:27]} 25. Bf4 {[%emt 0:00:33]} Qb7 {[%emt 0:02:40]} 26. Be5 {[%emt 0:01:34]} Nd7 {[%emt 0:01:02]} 27. Bxd4 {[%emt 0:00:17]} Bxd4 {[%emt 0:00:53]} 28. Nxd4 {[%emt 0:00:01]} e5 {[%emt 0:00:39]} 29. Nf5 {[%emt 0:00:50]} Nc5 {[%emt 0:00:27]} 30. Ne3 {[%emt 0:01:09]} e4 {[%emt 0:00:48]} 31. Nd5 {[%emt 0:00:45]} Nd3 {[%emt 0:02:28]} 32. f3 {[%emt 0:00:48]} Nc5 {[%emt 0:02:59]} 33. fxe4 {[%emt 0:00:21]} Qb8 {[%emt 0:00:31]} 34. Ne7+ {[%emt 0:01:21]} Kf7 {[%emt 0:02:09]} 35. Qf2+ {[%emt 0:00:25]} Kxe7 {[%emt 0:00:16]} 36. Qxc5+ {[%emt 0:00:05]} Kf7 {[%emt 0:00:16]} 37. Qd5+ {[%emt 0:00:18]} Ke7 {[%emt 0:00:13]} 38. c5 {[%emt 0:00:20]} 1-0

[Event "Slovakian ECo-C Extraliga 2024-25"]
[Site "Slovakia"]
[Date "2025.02.15"]
[Round "5"]
[White "Zetocha, Adrian"]
[Black "Zvarik, Martin"]
[Result "1/2-1/2"]
[Annotator "NA"]
[ECO "E39"]
[WhiteElo "2187"]
[BlackElo "2166"]
[PlyCount "33"]
[EventDate "2024.09.12"]
[EventType "team-tourn"]
[EventCountry "SVK"]
[SourceTitle "playchess.com"]
[Source "ChessBase"]
[SourceQuality "1"]
[TimeControl "5400+30"]

1. d4 {[%emt 0:00:03]} Nf6 {[%emt 0:00:51]} 2. c4 {[%emt 0:00:12]} e6 {[%emt 0:00:10]} 3. Nc3 {[%emt 0:00:40]} Bb4 {[%emt 0:00:42]} 4. Qc2 {[%emt 0:00:08]} c5 {[%emt 0:00:54]} 5. dxc5 {[%emt 0:00:37]} O-O {[%emt 0:01:09]} 6. a3 {[%emt 0:01:36]} Bxc5 {[%emt 0:00:19]} 7. Nf3 {[%emt 0:00:08]} Nc6 {[%emt 0:01:55]} 8. Bf4 {[%emt 0:00:48]} d5 {[%emt 0:13:48]} 9. Rd1 {[%emt 0:17:22]} e5 {[%emt 0:10:49]} 10. Bg5 {[%emt 0:08:52]} d4 {[%emt 0:03:51]} 11. Nd5 {[%emt 0:01:04]} Be7 {[%emt 0:08:21]} 12. Nxe7+ {[%emt 0:03:21]} Qxe7 {[%emt 0:00:09]} 13. e4 {[%emt 0:07:27]} h6 {[%emt 0:05:57]} 14. Bd2 {[%emt 0:17:14]} Bg4 {[%emt 0:06:06]} 15. Bd3 {[%emt 0:00:54]} Bxf3 {[%emt 0:02:36]} 16. gxf3 {[%emt 0:00:05]} Nh5 {[%emt 0:00:22]} 17. Ke2 {[%emt 0:12:28]} 1/2-1/2

[Event "Slovakian ECo-C Extraliga 2024-25"]
[Site "Slovakia"]
[Date "2025.02.15"]
[Round "5"]
[White "Terbe, Zsuzsanna"]
[Black "Roubalik, Jakub"]
[Result "*"]
[Annotator "ChessBase"]
[ECO "D44"]
[WhiteElo "2165"]
[BlackElo "2319"]
[PlyCount "36"]
[EventDate "2024.09.12"]
[EventType "team-tourn"]
[EventCountry "SVK"]
[SourceTitle "playchess.com"]
[Source "ChessBase"]
[SourceQuality "1"]
[TimeControl "5400+30"]

1. d4 {[%emt 0:00:09]} d5 {[%emt 0:00:08]} 2. c4 {[%emt 0:00:18]} c6 {[%emt 0:00:44]} 3. Nf3 {[%emt 0:00:43]} Nf6 {[%emt 0:01:45]} 4. Nc3 {[%emt 0:01:52]} e6 5. Bg5 dxc4 {[%emt 0:00:32]} 6. e4 {[%emt 0:00:09]} b5 {[%emt 0:00:00]} 7. e5 {[%emt 0:01:14]} h6 {[%emt 0:00:00]} 8. Bh4 {[%emt 0:00:36]} g5 {[%emt 0:01:47]} 9. Bg3 {[%emt 0:00:52]} Nd5 {[%emt 0:00:04]} 10. Nd2 {[%emt 0:00:36]} Nd7 {[%emt 0:00:41]} 11. Be2 {[%emt 0:01:43]} Bb7 {[%emt 0:08:29]} 12. a4 {[%emt 0:17:13]} a5 {[%emt 0:06:05]} 13. O-O {[%emt 0:00:35]} Qb6 {[%emt 0:20:20]} 14. axb5 {[%emt 0:08:02]} cxb5 {[%emt 0:03:12]} 15. Nde4 {[%emt 0:00:50]} Rd8 {[%emt 0:01:51]} 16. Nxd5 {[%emt 0:07:28]} Bxd5 {[%emt 0:01:33]} 17. Nc3 {[%emt 0:06:06]} Bg7 {[%emt 0:03:18]} 18. Nxd5 {[%emt 0:02:27]} exd5 {[%emt 0:00:00]} *

[Event "Slovakian ECo-C Extraliga 2024-25"]
[Site "Slovakia"]
[Date "2025.02.15"]
[Round "5"]
[White "Szegi, Tamas"]
[Black "Zpevak, Pavel"]
[Result "1/2-1/2"]
[Annotator "NA"]
[ECO "B22"]
[WhiteElo "2123"]
[BlackElo "2267"]
[PlyCount "30"]
[EventDate "2024.09.12"]
[EventType "team-tourn"]
[EventCountry "SVK"]
[SourceTitle "playchess.com"]
[Source "ChessBase"]
[SourceQuality "1"]
[TimeControl "5400+30"]

1. e4 {[%emt 0:01:55]} c5 {[%emt 0:01:36]} 2. c3 {[%emt 0:03:22]} Nf6 {[%emt 0:00:04]} 3. e5 {[%emt 0:00:00]} Nd5 {[%emt 0:02:40]} 4. d4 {[%emt 0:00:00]} cxd4 {[%emt 0:00:18]} 5. Nf3 {[%emt 0:00:33]} e6 {[%emt 0:00:34]} 6. Bc4 {[%emt 0:01:57]} d6 {[%emt 0:06:07]} 7. O-O {[%emt 0:02:12]} Nc6 {[%emt 0:03:56]} 8. cxd4 {[%emt 0:01:05]} Be7 {[%emt 0:04:09]} 9. Qe2 {[%emt 0:01:39]} O-O {[%emt 0:06:56]} 10. a3 {[%emt 0:06:37]} Bd7 {[%emt 0:06:05]} 11. Rd1 {[%emt 0:03:00]} Rc8 {[%emt 0:10:37]} 12. Bxd5 {[%emt 0:00:46]} exd5 {[%emt 0:00:10]} 13. Nc3 {[%emt 0:10:01]} Be6 {[%emt 0:02:28]} 14. Bf4 {[%emt 0:09:43]} dxe5 {[%emt 0:07:37]} 15. Nxe5 {[%emt 0:15:35]} Nxe5 {[%emt 0:07:21]} 1/2-1/2

[Event "Slovakian ECo-C Extraliga 2024-25"]
[Site "Slovakia"]
[Date "2025.02.15"]
[Round "5"]
[White "Joba, Arpad"]
[Black "Bombek, Peter"]
[Result "*"]
[Annotator "NA"]
[ECO "B22"]
[WhiteElo "2109"]
[BlackElo "2104"]
[PlyCount "38"]
[EventDate "2024.09.12"]
[EventType "team-tourn"]
[EventCountry "SVK"]
[SourceTitle "playchess.com"]
[Source "ChessBase"]
[SourceQuality "1"]
[TimeControl "5400+30"]

1. e4 {[%emt 0:00:12]} c5 {[%emt 0:00:05]} 2. c3 {[%emt 0:00:05]} Nf6 {[%emt 0:00:45]} 3. e5 {[%emt 0:00:05]} Nd5 {[%emt 0:00:06]} 4. Nf3 {[%emt 0:01:02]} Nc6 {[%emt 0:00:56]} 5. Bc4 {[%emt 0:03:02]} Nb6 {[%emt 0:02:26]} 6. Bb3 {[%emt 0:01:45]} c4 {[%emt 0:02:40]} 7. Bc2 {[%emt 0:03:21]} d6 {[%emt 0:03:19]} 8. exd6 {[%emt 0:00:00]} Qxd6 {[%emt 0:00:40]} 9. O-O {[%emt 0:02:48]} Bg4 {[%emt 0:00:49]} 10. Re1 {[%emt 0:00:00]} O-O-O {[%emt 0:08:37]} 11. b3 {[%emt 0:01:41]} Qf6 {[%emt 0:07:17]} 12. Na3 {[%emt 0:14:12]} Nd5 {[%emt 0:05:56]} 13. Nxc4 {[%emt 0:00:14]} Nxc3 {[%emt 0:00:00]} 14. dxc3 {[%emt 0:00:18]} Rxd1 {[%emt 0:01:49]} 15. Bxd1 {[%emt 0:15:08]} e6 {[%emt 0:01:27]} 16. Bg5 {[%emt 0:00:42]} Qg6 {[%emt 0:19:54]} 17. Nfe5 {[%emt 0:00:00]} Nxe5 {[%emt 0:00:25]} 18. Nxe5 {[%emt 0:00:00]} Qxg5 {[%emt 0:01:00]} 19. Nxf7 {[%emt 0:00:50]} Qh5 {[%emt 0:00:16]} *

[Event "Slovakian ECo-C Extraliga 2024-25"]
[Site "Slovakia"]
[Date "2025.02.15"]
[Round "5"]
[White "Bombek, Peter"]
[Black "Joba, Arpad"]
[Result "0-1"]
[Annotator "NA"]
[ECO "B22"]
[WhiteElo "2104"]
[BlackElo "2109"]
[PlyCount "74"]
[EventDate "2024.09.12"]
[EventType "team-tourn"]
[EventCountry "SVK"]
[SourceTitle "playchess.com"]
[Source "ChessBase"]
[SourceQuality "1"]
[TimeControl "5400+30"]

1. e4 {[%emt 0:00:12]} c5 {[%emt 0:00:05]} 2. c3 {[%emt 0:00:05]} Nf6 {[%emt 0:00:45]} 3. e5 {[%emt 0:00:05]} Nd5 {[%emt 0:00:06]} 4. Nf3 {[%emt 0:01:02]} Nc6 {[%emt 0:00:56]} 5. Bc4 {[%emt 0:03:02]} Nb6 {[%emt 0:02:26]} 6. Bb3 {[%emt 0:01:45]} c4 {[%emt 0:02:40]} 7. Bc2 {[%emt 0:03:21]} d6 {[%emt 0:03:19]} 8. exd6 {[%emt 0:00:00]} Qxd6 {[%emt 0:00:40]} 9. O-O {[%emt 0:02:48]} Bg4 {[%emt 0:00:49]} 10. Re1 {[%emt 0:00:00]} O-O-O {[%emt 0:08:37]} 11. b3 {[%emt 0:01:41]} Qf6 {[%emt 0:07:17]} 12. Na3 {[%emt 0:14:12]} Nd5 {[%emt 0:05:56]} 13. Nxc4 {[%emt 0:00:14]} Nxc3 {[%emt 0:00:00]} 14. dxc3 {[%emt 0:00:18]} Rxd1 {[%emt 0:01:49]} 15. Bxd1 {[%emt 0:15:08]} e6 {[%emt 0:07:40]} 16. Bg5 {[%emt 0:14:36]} Qg6 {[%emt 0:11:31]} 17. Nfe5 {[%emt 0:00:00]} Nxe5 {[%emt 0:00:25]} 18. Nxe5 {[%emt 0:00:00]} Qxg5 {[%emt 0:01:10]} 19. Nxf7 {[%emt 0:01:14]} Qh5 {[%emt 0:11:41]} 20. Bxg4 {[%emt 0:01:53]} Qxg4 {[%emt 0:00:00]} 21. Nxh8 {[%emt 0:02:11]} Qf5 {[%emt 0:01:35]} 22. Re3 {[%emt 0:05:37]} Bd6 {[%emt 0:07:52]} 23. Rf3 {[%emt 0:14:43]} Qe5 {[%emt 0:03:44]} 24. g3 {[%emt 0:00:00]} Qd5 {[%emt 0:09:04]} 25. Rf7 {[%emt 0:01:41]} Be5 {[%emt 0:04:02]} 26. Rf8+ {[%emt 0:02:03]} Kd7 {[%emt 0:00:40]} 27. Ra8 {[%emt 0:02:42]} Ke7 {[%emt 0:02:22]} 28. Rxa7 {[%emt 0:03:56]} Bxc3 {[%emt 0:00:16]} 29. Rc1 {[%emt 0:01:18]} Bd4 {[%emt 0:00:17]} 30. Rc7+ {[%emt 0:01:05]} Kf6 {[%emt 0:01:34]} 31. Rf7+ {[%emt 0:01:52]} Kg5 {[%emt 0:01:38]} 32. Ra4 {[%emt 0:00:58]} b5 {[%emt 0:01:28]} 33. Ra6 {[%emt 0:00:27]} Bf6 {[%emt 0:04:50]} 34. Raa7 {[%emt 0:01:30]} Kg4 {[%emt 0:00:00]} 35. Rad7 {[%emt 0:03:37]} Qe4 {[%emt 0:02:18]} 36. Kf1 {[%emt 0:01:17]} Kf3 {[%emt 0:00:24]} 37. Rd1 {[%emt 0:01:53]} Qe2+ {[%emt 0:00:00]} 0-1